Cogmind - Beta 15 @@@ ROGUE MODE // 2025.05.12 @ 19:27:39 Player: LustLizard Result: Self-destructed Performance ------------- Evolutions (4) 2000 Regions Visited (10) 2000 Robots Destroyed (63) 315 Value Destroyed (2034) 2034 Prototype IDs (6) 120 Alien Tech Used (0) 0 Bonus (185) 185 TOTAL SCORE: 6654 Bonus ------- High Alert Combat Kills 22 Follower Combat Kills 163 Cogmind --------- Core Integrity 850/850 Matter 265/300 Energy 3/100 System Corruption 0% Temperature Cool (0) Movement Walking (115) Location -6/Waste Parts ------- > --- POWER (1) -------- (None) > --- PROPULSION (5) --- Carbon-fiber Leg Titanium Leg VSS Leg Improved Carbon-fiber Leg > --- UTILITY (7) ------ Large Storage Unit Advanced Visual Processing Unit Improved Sensor Array Improved Signal Interpreter Advanced Terrain Scan Processor Cloaking Device > --- WEAPON (2) ------- Makeshift Laser Makeshift Laser > --- INVENTORY (15) --- Light Deuterium Engine Light Deuterium Engine Xenon Bombardment Thruster Xenon Bombardment Thruster Xenon Bombardment Thruster Improved Cooling System Medium Storage Unit Improved Signal Interpreter Weapon Cycler Graphene Brace Makeshift Laser Makeshift Laser Improved Grenade Launcher Missile Launcher Makeshift Spear Peak State ------------ > --- POWER ------------ Light Nuclear Core > --- PROPULSION ------- Carbon-fiber Leg Carbon-fiber Leg Titanium Leg VSS Leg Improved Carbon-fiber Leg > --- UTILITY ---------- Large Storage Unit Advanced Visual Processing Unit Improved Sensor Array Improved Signal Interpreter Makeshift Terrain Scanner Advanced Terrain Scan Processor Cloaking Device > --- WEAPON ----------- Makeshift Laser Makeshift Laser > --- INVENTORY -------- Light Deuterium Engine Light Deuterium Engine Xenon Bombardment Thruster Xenon Bombardment Thruster Xenon Bombardment Thruster Improved Cooling System Medium Storage Unit Improved Signal Interpreter Weapon Cycler Graphene Brace Makeshift Laser Makeshift Laser Improved Grenade Launcher Missile Launcher Makeshift Spear [Rating: 58] Favorites ----------- Power Light Nuclear Core Engine Ion Engine Power Core Light Nuclear Core Propulsion Light Treads Treads Light Treads Leg Carbon-fiber Leg Wheel Wheel Utility Large Storage Unit Device Makeshift Terrain Scanner Storage Large Storage Unit Processor Advanced Visual Processing Unit Protection Weapon Shielding Weapon Heavy EM Shotgun Energy Gun Heavy EM Shotgun Energy Cannon Cooled Particle Cannon Ballistic Gun Gauss Rifle Launcher Grenade Launcher Piercing Weapon Makeshift Spear Build | -11 -10 -10 -10 -9 -8 -7 -7 -7 -6 -6 ------- Run | Yrd Mat Min Exi Min Mat Fac Low Low Fac Was Slots Evolved 8 | . . . . . 4 2 . . 2 . Power . | . . . . . . . . . . . Propulsion 3 | . . . . . 1 1 . . 1 . Utility 5 | . . . . . 3 1 . . 1 . Weapon . | . . . . . . . . . . . Parts Attached 66 | 6 8 1 1 . 36 8 3 . 3 . Power 6 | 1 1 . . . 3 1 . . . . Engine 5 | 1 1 . . . 3 . . . . . Core 1 | . . . . . . 1 . . . . Reactor . | . . . . . . . . . . . Propulsion 19 | 2 2 . . . 9 5 . . 1 . Treads 10 | 1 1 . . . 8 . . . . . Leg 7 | . . . . . 1 5 . . 1 . Wheel 2 | 1 1 . . . . . . . . . Hover . | . . . . . . . . . . . Flight . | . . . . . . . . . . . Utility 20 | 1 4 . 1 . 10 1 1 . 2 . Device 10 | . 1 . . . 7 . 1 . 1 . Storage 3 | 1 1 . 1 . . . . . . . Processor 5 | . 1 . . . 2 1 . . 1 . Hackware . | . . . . . . . . . . . Protection 2 | . 1 . . . 1 . . . . . Artifact . | . . . . . . . . . . . Weapon 21 | 2 1 1 . . 14 1 2 . . . Energy Gun 12 | 2 . 1 . . 6 1 2 . . . Energy Cannon 3 | . . . . . 3 . . . . . Ballistic Gun 2 | . . . . . 2 . . . . . Ballistic Cannon . | . . . . . . . . . . . Launcher 3 | . 1 . . . 2 . . . . . Special Weapon . | . . . . . . . . . . . Impact Weapon . | . . . . . . . . . . . Slashing Weapon . | . . . . . . . . . . . Piercing Weapon 1 | . . . . . 1 . . . . . Special Melee Weapon . | . . . . . . . . . . . Unidentified Prototypes 4 | . . . . . 4 . . . . . Parts Lost 15 | . 3 . . . 9 1 . . . 2 Power 1 | . 1 . . . . . . . . . Propulsion 6 | . 2 . . . 2 1 . . . 1 Utility 4 | . . . . . 3 . . . . 1 Weapon 4 | . . . . . 4 . . . . . Highest Loss Streak 5 | . 2 . . . 5 1 . . . 2 To Critical Strikes . | . . . . . . . . . . . Average Backups 14 | 4 12 14 15 15 14 14 14 15 14 15 Power 1 | . 1 1 2 2 1 1 2 2 2 2 Propulsion 3 | 2 3 2 2 2 2 4 3 4 3 3 Utility 4 | . 3 5 7 7 4 4 4 4 4 5 Weapon 4 | 1 3 3 3 3 5 5 4 5 5 5 Tool/Special . | . . . . . . . . . . . Unused Backups 28 | . 1 4 3 1 6 . 3 . . 10 Power 4 | . . 1 . . 1 . . . . 2 Propulsion 6 | . 1 1 . . . . 1 . . 3 Utility 7 | . . . 1 1 3 . . . . 2 Weapon 10 | . . 2 1 . 2 . 2 . . 3 Tool/Special 1 | . . . 1 . . . . . . . Average Slot Usage (%) 97 | . 97 100 100 100 98 92 100 100 94 100 Engine 7 | . 13 14 14 14 9 5 . . . . Core 2 | . . . . . . 1 7 7 6 6 Treads 12 | . 13 14 14 14 23 19 . . . . Leg 9 | . . . . . . 3 30 30 27 33 Wheel 5 | . 13 14 14 14 2 . . . . . Device 14 | . 3 . . . 17 23 23 23 20 20 Storage 9 | . 14 14 14 14 9 7 7 7 6 6 Processor 14 | . 4 14 14 14 17 15 15 15 19 20 Energy Gun 18 | . 27 21 28 28 13 14 15 15 13 13 Peak Build Rating 58 | 6 9 10 11 12 49 51 51 50 58 58 Average Rating 33 | 3 8 9 10 11 35 49 50 50 54 57 On Entrance 27 | . 6 9 10 11 12 45 49 51 50 58 Naked Turns . | . . . . . . . . . . . Heaviest Build 52 | 12 32 29 28 28 52 46 37 33 34 32 Greatest Support 77 | 16 20 10 10 10 60 63 60 60 77 77 Greatest Overweight (x) 4 | . 2 2 2 2 4 1 . . . . Average Overweight (x) . | . 1 2 2 2 1 . . . . . Largest Inventory Capacity 15 | 8 15 15 15 15 15 15 15 15 15 15 Average Capacity 14 | 6 14 15 15 15 15 15 15 15 15 15 Most Carried 15 | 7 15 15 15 15 15 15 15 15 15 15 Average Carried 14 | 4 13 14 14 14 14 14 14 15 14 15 Final Capacity 15 | 8 15 15 15 15 15 15 15 15 15 15 Final Carried 15 | 6 14 15 15 15 15 15 15 15 15 15 Class Distribution -------------------- 39% | Scavenger-Skirmisher 22% | Mutant 18% | Commander-Mutant 16% | Scavenger-Mutant 3% | Scavenger-Assassin Dominant Class ---------------- Mutant | -10/Materials Mutant | -10/Mines Commander-Mutant | -10/Exiles Commander-Mutant | -9/Mines Scavenger-Mutant | -8/Materials Scavenger-Skirmisher | -7/Factory Scavenger-Skirmisher | -7/Lower Caves Scavenger-Skirmisher | -7/Lower Caves Scavenger-Skirmisher | -6/Factory Scavenger-Skirmisher | -6/Waste Resources | -11 -10 -10 -10 -9 -8 -7 -7 -7 -6 -6 ----------- Run | Yrd Mat Min Exi Min Mat Fac Low Low Fac Was Matter Collected 1589 | 203 160 72 . 10 783 . 331 30 . . Remotely . | . . . . . . . . . . . Salvage Created 2329 | . 353 57 . 61 1487 100 271 . . . Parts 135 | . 32 5 . 2 83 6 7 . . . Haulers Intercepted 3 | . . . . . 3 . . . . . Recyclers Shooed 1 | . 1 . . . . . . . . . Parts Field Recycled . | . . . . . . . . . . . Retrieved Matter . | . . . . . . . . . . . Parts Self-Destructed 4 | . . . . . . . 4 . . . Prevented 3 | . . . . . . . 3 . . . Kills | -11 -10 -10 -10 -9 -8 -7 -7 -7 -6 -6 ------- Run | Yrd Mat Min Exi Min Mat Fac Low Low Fac Was Combat Hostiles Destroyed 52 | . 13 5 . 2 25 2 5 . . . Guns 33 | . 13 1 . 2 12 2 3 . . . Cannons 5 | . . . . . 5 . . . . . AOE 11 | . . 4 . . 7 . . . . . Classes Destroyed 13 | . 3 . . . 8 1 1 . . . Worker 1 | . . . . . 1 . . . . . Builder 1 | . . . . . 1 . . . . . Hauler 3 | . . . . . 3 . . . . . Recycler 1 | . . . . . 1 . . . . . Watcher 4 | . 3 . . . 1 . . . . . Swarmer 17 | . 9 3 . 1 4 . . . . . Grunt 21 | . 4 2 . 1 12 . 2 . . . Duelist 1 | . . . . . . . 1 . . . Sentry 6 | . . . . . 5 . 1 . . . Specialist 2 | . . . . . 2 . . . . . Hunter 3 | . . . . . 2 . 1 . . . Programmer 2 | . . . . . . 2 . . . . Heavy 1 | . . . . . 1 . . . . . Best Kill Streak 5 | . 3 5 . 1 5 1 2 . . . Combat Bots Only 5 | . 3 5 . 1 4 1 2 . . . Max Kills in Single Turn 4 | . 1 2 . 1 4 1 1 . . . Gunslinging . | . . . . . . . . . . . Exploded 4 | . . 2 . . 4 . . . . . Melee . | . . . . . . . . . . . Uniques/NPCs Destroyed . | . . . . . . . . . . . Combat | -11 -10 -10 -10 -9 -8 -7 -7 -7 -6 -6 -------- Run | Yrd Mat Min Exi Min Mat Fac Low Low Fac Was Hostile Shots Fired 373 | . 96 7 . 5 140 60 64 . . 1 Missed 94 | . 21 1 . 3 31 16 22 . . . Hits 279 | . 75 6 . 2 109 44 42 . . 1 Melee 2 | . . . . . . . 1 . . 1 Projectile 277 | . 75 6 . 2 109 44 41 . . . Critical Strikes 8 | . 3 . . . 4 1 . . . . Actively Blocked 1 | . . . . . 1 . . . . . Part Disruptions 1 | . . . . . . . 1 . . . Damage Taken 4121 | . 764 58 . 18 2101 680 462 . . 38 Core 799 | . 204 17 . 8 397 127 46 . . . Absorbed by Shields . | . . . . . . . . . . . Redirected to Shielding 12 | . 12 . . . . . . . . . Regen/Repaired (Parts) 249 | . 240 . . . 9 . . . . . Core Remaining (%) 52 | 100 . . . 8 27 . . 75 . . Volleys Fired 210 | . 48 4 . 4 97 34 23 . . . Largest 2 | . 2 1 . 2 2 2 2 . . . Hottest 150 | . 80 40 . 90 150 100 100 . . . Shots Fired 404 | . 96 4 . 5 184 67 48 . . . Gun 359 | . 96 1 . 5 142 67 48 . . . Cannon 36 | . . . . . 36 . . . . . Launcher 9 | . . 3 . . 6 . . . . . Special . | . . . . . . . . . . . Kinetic 36 | . . . . . 36 . . . . . Thermal 284 | . 96 1 . 5 142 . 40 . . . Explosive 9 | . . 3 . . 6 . . . . . Electromagnetic 75 | . . . . . . 67 8 . . . Robot Hit Streak 15 | . 10 3 . 4 15 9 6 . . . Robot Miss Streak 5 | . 5 1 . 2 4 4 4 . . . Penetration Max 1 | . . . . . 1 . . . . . Secondary Targets 3 | . 3 . . . . . . . . . Max Gunslinging Chain 1 | . 1 . . . . . . . . . Shots Hit Robots 272 | . 54 3 . 2 126 60 27 . . . Core Hits 124 | . 23 8 . 3 57 22 11 . . . Critical Kills . | . . . . . . . . . . . Critical Parts Destroyed . | . . . . . . . . . . . Critical Strikes 10 | . . . . 1 6 . 3 . . . Burn 10 | . . . . 1 6 . 3 . . . Melee Attacks 10 | . . . . . 7 3 . . . . Impact . | . . . . . . . . . . . Slashing . | . . . . . . . . . . . Piercing 10 | . . . . . 7 3 . . . . Sneak Attacks 1 | . . . . . 1 . . . . . Combat Hostiles . | . . . . . . . . . . . Follow-up Attacks . | . . . . . . . . . . . Damage Inflicted 5036 | . 651 216 . 49 3370 280 470 . . . Guns 3099 | . 651 12 . 49 1689 228 470 . . . Cannons 723 | . . . . . 723 . . . . . Explosions 1160 | . . 204 . . 904 52 . . . . Melee 54 | . . . . . 54 . . . . . Ramming . | . . . . . . . . . . . Kinetic 449 | . . . . . 449 . . . . . Thermal 3100 | . 651 12 . 49 1963 52 373 . . . Explosive 1108 | . . 204 . . 904 . . . . . Electromagnetic 325 | . . . . . . 228 97 . . . Impact . | . . . . . . . . . . . Slashing . | . . . . . . . . . . . Piercing 54 | . . . . . 54 . . . . . Highest Corruption 7 | . . . . . 3 7 7 7 . . Average Corruption 5 | . . . . . 3 5 7 7 . . Corruption Purged . | . . . . . . . . . . . Corruption Blocked . | . . . . . . . . . . . Effects 94 | . . . . . 25 13 50 6 . . Message Errors 27 | . . . . . 6 4 16 1 . . Matter Fused 17 | . . . . . 4 2 9 2 . . Heat Flow Errors 10 | . . . . . 2 1 6 1 . . Energy Discharges 13 | . . . . . 4 4 5 . . . Parts Rejected 1 | . . . . . 1 . . . . . Data Loss (minor) 9 | . . . . . 4 . 4 1 . . Data Loss (major) 7 | . . . . . 2 1 3 1 . . Misfires 5 | . . . . . 1 . 4 . . . Alerts 1 | . . . . . . . 1 . . . Weapon Failures 4 | . . . . . 1 1 2 . . . Overload Shots 2 | . . . . . 2 . . . . . Effects 1 | . . . . . 1 . . . . . Heat Surge 1 | . . . . . 1 . . . . . Overflow Damage 88 | . . . . . 81 7 . . . . Projectiles 4 | . . . . . 4 . . . . . Explosions 50 | . . . . . 43 7 . . . . Melee 34 | . . . . . 34 . . . . . Knockbacks . | . . . . . . . . . . . Impact . | . . . . . . . . . . . Kinetic . | . . . . . . . . . . . Secondary . | . . . . . . . . . . . Self-Inflicted Damage 29 | . . 8 . . . 21 . . . . Shots 2 | . . 1 . . . 1 . . . . Rammed . | . . . . . . . . . . . Targets Rammed . | . . . . . . . . . . . Kicked . | . . . . . . . . . . . Crushed . | . . . . . . . . . . . Highest Temperature 301 | . 246 . . 30 301 240 273 134 . . Average Temperature 91 | . 86 . . 16 67 137 102 68 . . Received Heat Transfer 996 | . 264 6 . . 591 . 135 . . . Siege Activations . | . . . . . . . . . . . Martial Activations . | . . . . . . . . . . . Shielding Activations . | . . . . . . . . . . . Robots Disrupted . | . . . . . . . . . . . Combat Hostiles . | . . . . . . . . . . . Robots Corrupted 1 | . . . . . . . 1 . . . Combat Hostiles 1 | . . . . . . . 1 . . . Parts Fried 9 | . . . . . . 9 . . . . Impact Corruptions . | . . . . . . . . . . . Robots Melted 2 | . . . . . 1 . 1 . . . Combat Hostiles 2 | . . . . . 1 . 1 . . . Parts Melted 26 | . 4 . . 1 15 . 6 . . . Heat Transferred 6965 | . 1450 25 . 222 4182 50 1036 . . . Parts Sabotaged . | . . . . . . . . . . . Parts Stolen . | . . . . . . . . . . . Parts Stripped . | . . . . . . . . . . . Power Chain Reactions 1 | . . . . . . 1 . . . . Alert | -11 -10 -10 -10 -9 -8 -7 -7 -7 -6 -6 ------- Run | Yrd Mat Min Exi Min Mat Fac Low Low Fac Was Maximum Alert Level 2 | . . . . 1 2 . . . . . Low Security (%) 78 | 100 100 100 . 88 39 100 . . 100 100 Level 1 16 | . . . . 11 46 . . . . . Level 2 4 | . . . . . 13 . . . . . Level 3 . | . . . . . . . . . . . Level 4 . | . . . . . . . . . . . Level 5 . | . . . . . . . . . . . High Security . | . . . . . . . . . . . Max Security . | . . . . . . . . . . . Peak Influence 425 | . 60 140 . 222 425 176 . . . . Initial 176 | . . . . . 55 176 . . . . Average 97 | . 17 51 . 96 230 25 . . . . Influence Increases 2108 | . 369 140 . 352 1063 64 120 . . . Destroy 0b10 Robot/C 1300 | . 260 100 . 180 620 40 100 . . . Destroy 0b10 Robot/NC 65 | . 15 . . . 50 . . . . . Destroy Leader 316 | . 56 20 . 30 170 20 20 . . . Allied During Kill 103 | . . . . 66 37 . . . . . Successful Hack 73 | . 38 . . . 35 . . . . . Disable Machine 120 | . . . . 60 60 . . . . . Destroy Structure 86 | . . 20 . 16 46 4 . . . . Lose Combat Pursuer 45 | . . . . . 45 . . . . . Influence Decreases 2108 | . 369 110 30 210 816 451 53 69 . . Entered New Map 346 | . . . 30 . 87 213 2 14 . . Time Decay 1465 | . 300 110 . 110 601 238 51 55 . . Lost Part 118 | . 28 . . . 90 . . . . . Lost Ally 148 | . 10 . . 100 38 . . . . . Purge Threat 31 | . 31 . . . . . . . . . Squads Dispatched 10 | . 1 . . . 5 4 . . . . Investigation 3 | . 1 . . . 1 1 . . . . Extermination 2 | . . . . . . 2 . . . . Reinforcement 5 | . . . . . 4 1 . . . . Assault . | . . . . . . . . . . . Garrison . | . . . . . . . . . . . Intercept . | . . . . . . . . . . . Searches Triggered . | . . . . . . . . . . . Construction Impeded 1 | . . . . . . 1 . . . . Haulers Reinforced . | . . . . . . . . . . . Active Scanning Responses . | . . . . . . . . . . . Cargo Convoy Interrupts 1 | . . . . . . 1 . . . . Stealth | -11 -10 -10 -10 -9 -8 -7 -7 -7 -6 -6 --------- Run | Yrd Mat Min Exi Min Mat Fac Low Low Fac Was Distress Signals 7 | . 4 . . . 3 . . . . . Communications Jammed . | . . . . . . . . . . . Distress Signals . | . . . . . . . . . . . Times Spotted 87 | . 20 5 . 8 45 2 5 . . 2 Peak Tracking Total 7 | . 5 5 . 4 7 1 3 . . 2 Tactical Retreats 2 | . . . . . 2 . . . . . Traps | -11 -10 -10 -10 -9 -8 -7 -7 -7 -6 -6 ------- Run | Yrd Mat Min Exi Min Mat Fac Low Low Fac Was Traps Triggered 3 | . . . . . 1 . 1 . 1 . Indirectly . | . . . . . . . . . . . Trap Hack Attempts . | . . . . . . . . . . . Triggered . | . . . . . . . . . . . Disarmed . | . . . . . . . . . . . Reprogrammed . | . . . . . . . . . . . Reused . | . . . . . . . . . . . Traps Extracted . | . . . . . . . . . . . Installed . | . . . . . . . . . . . Triggered . | . . . . . . . . . . . Machines | -11 -10 -10 -10 -9 -8 -7 -7 -7 -6 -6 ---------- Run | Yrd Mat Min Exi Min Mat Fac Low Low Fac Was Machines Disabled 8 | . . . . 4 4 . . . . . Max in Single Turn 1 | . . . . . 1 . . . . . Machines Repaired . | . . . . . . . . . . . Machines Dismantled . | . . . . . . . . . . . Machines Sabotaged . | . . . . . . . . . . . Overloaded Fab Kills . | . . . . . . . . . . . Hacking | -11 -10 -10 -10 -9 -8 -7 -7 -7 -6 -6 --------- Run | Yrd Mat Min Exi Min Mat Fac Low Low Fac Was Machines Accessed 20 | . 9 1 2 . 6 1 1 . . . Terminals 14 | . 8 . . . 5 1 . . . . Fabricators . | . . . . . . . . . . . Repair Stations 2 | . 1 . . . 1 . . . . . Recycling Units . | . . . . . . . . . . . Scanalyzers . | . . . . . . . . . . . Garrison Access . | . . . . . . . . . . . Total Hacks 87 | . 49 1 16 . 17 3 1 . . . Successful 58 | . 33 1 16 . 7 . 1 . . . Failed 28 | . 15 . . . 10 3 . . . . Catastrophic 5 | . 1 . . . 3 1 . . . . Database Lockouts 1 | . 1 . . . . . . . . . Manual 44 | . 29 . . . 12 3 . . . . Terminals 54 | . 37 . . . 14 3 . . . . Fabricators . | . . . . . . . . . . . Repair Stations 15 | . 12 . . . 3 . . . . . Recycling Units . | . . . . . . . . . . . Scanalyzers . | . . . . . . . . . . . Garrison Access . | . . . . . . . . . . . Terminal Hacks 29 | . 9 1 16 . 2 . 1 . . . Record 16 | . . . 16 . . . . . . . Robot Analysis 2 | . 1 . . . 1 . . . . . Prototype ID Bank 1 | . 1 . . . . . . . . . Open Door 2 | . . 1 . . . . 1 . . . Level Access Points 1 | . . . . . 1 . . . . . Repair Station Index 1 | . 1 . . . . . . . . . Unreport Threat 1 | . 1 . . . . . . . . . Locate Traps 2 | . 2 . . . . . . . . . Investigation Status 1 | . 1 . . . . . . . . . Hauler Manifests 2 | . 2 . . . . . . . . . Fabricator Hacks . | . . . . . . . . . . . Repair Station Hacks 12 | . 10 . . . 2 . . . . . Scan Component 6 | . 5 . . . 1 . . . . . Repair 6 | . 5 . . . 1 . . . . . Recycling Unit Hacks . | . . . . . . . . . . . Scanalyzer . | . . . . . . . . . . . Garrison Access Hacks . | . . . . . . . . . . . Unauthorized Hacks 17 | . 14 . . . 3 . . . . . Terminals 17 | . 14 . . . 3 . . . . . Track 1 | . 1 . . . . . . . . . Assimilate 8 | . 7 . . . 1 . . . . . Botnet 6 | . 4 . . . 2 . . . . . Disrupt 1 | . 1 . . . . . . . . . Operators 1 | . 1 . . . . . . . . . Fabricators . | . . . . . . . . . . . Repair Stations . | . . . . . . . . . . . Recycling Units . | . . . . . . . . . . . Scanalyzers . | . . . . . . . . . . . Garrison Access . | . . . . . . . . . . . Data Cores Recovered . | . . . . . . . . . . . Used . | . . . . . . . . . . . Hacking Detections 16 | . 9 . . . 6 1 . . . . Full Trace Events 3 | . 1 . . . 1 1 . . . . Feedback Events . | . . . . . . . . . . . Feedback Blocked . | . . . . . . . . . . . Robot Schematics Acquired . | . . . . . . . . . . . Robots Built . | . . . . . . . . . . . Authchips . | . . . . . . . . . . . Time . | . . . . . . . . . . . Total Robot Build Rating . | . . . . . . . . . . . Part Schematics Acquired . | . . . . . . . . . . . Parts Built . | . . . . . . . . . . . Authchips . | . . . . . . . . . . . Time . | . . . . . . . . . . . Total Part Build Rating . | . . . . . . . . . . . Parts Repaired 6 | . 5 . . . 1 . . . . . Time 192 | . 130 . . . 62 . . . . . Parts Recycled . | . . . . . . . . . . . Recycled Matter . | . . . . . . . . . . . Retrieved Matter . | . . . . . . . . . . . Retrieved Components . | . . . . . . . . . . . Parts Scanalyzed . | . . . . . . . . . . . Part Schematics Acquired . | . . . . . . . . . . . Parts Damaged . | . . . . . . . . . . . Bothacking | -11 -10 -10 -10 -9 -8 -7 -7 -7 -6 -6 ------------ Run | Yrd Mat Min Exi Min Mat Fac Low Low Fac Was Used RIF Installer . | . . . . . . . . . . . Robots Hacked . | . . . . . . . . . . . Non-combat . | . . . . . . . . . . . Combat . | . . . . . . . . . . . Robot Hacks Applied . | . . . . . . . . . . . Relay Couplers Released . | . . . . . . . . . . . Fabnet Peak Effective % . | . . . . . . . . . . . Robots Rewired 6 | . . . 6 . . . . . . . Allies Hacked . | . . . . . . . . . . . Hacks Repelled . | . . . . . . . . . . . Allies | -11 -10 -10 -10 -9 -8 -7 -7 -7 -6 -6 -------- Run | Yrd Mat Min Exi Min Mat Fac Low Low Fac Was Total Allies 10 | . 1 3 6 . . . . . . . Largest Group 9 | . 1 3 9 9 4 . . . . . Highest-Rated Group 114 | . 10 40 114 114 53 . . . . . Highest-Rated Ally 21 | . 10 16 21 21 21 . . . . . Total Orders . | . . . . . . . . . . . Ally Attacks 68 | . . . . 34 34 . . . . . Total Damage 909 | . . . . 357 552 . . . . . Kills 17 | . . . . 7 10 . . . . . Allies Corrupted . | . . . . . . . . . . . Allies Melted . | . . . . . . . . . . . Intel | -11 -10 -10 -10 -9 -8 -7 -7 -7 -6 -6 ------- Run | Yrd Mat Min Exi Min Mat Fac Low Low Fac Was Active Infowar (turns) 8060 | . 673 351 879 369 1813 1448 1842 257 310 118 Optics 7687 | . 339 351 879 369 1774 1448 1842 257 310 118 Sensors 3885 | . . . . . 125 1373 1702 257 310 118 Terrain 4023 | . . . . . 775 1128 1703 . 308 109 Structural 779 | . 334 . . . 445 . . . . . Cloaking 136 | . . . . . . . . . 39 97 Robot Analysis Total 2 | . 1 . . . 1 . . . . . Derelict Logs Recovered 3 | . . 2 . 1 . . . . . . Drone Launches . | . . . . . . . . . . . Drone Recoveries . | . . . . . . . . . . . Exploration | -11 -10 -10 -10 -9 -8 -7 -7 -7 -6 -6 ------------- Run | Yrd Mat Min Exi Min Mat Fac Low Low Fac Was Turns Passed 8718 | 51 1156 351 879 369 1937 1448 1842 257 310 118 Spaces Moved 4631 | 36 559 280 681 287 897 506 868 219 246 52 Core 8 | 8 . . . . . . . . . . Treads 1095 | . 151 . . . 503 441 . . . . Legs 1450 | . . . . . . 65 868 219 246 52 Wheels 2078 | 28 408 280 681 287 394 . . . . . Hover . | . . . . . . . . . . . Flight . | . . . . . . . . . . . Fastest Speed 50 | 50 100 110 110 110 110 112 112 112 112 115 Average Speed 129 | 88 147 110 110 110 147 173 112 112 112 115 Slowest Speed 250 | 100 240 110 110 110 240 250 112 112 116 116 Overloaded Moves . | . . . . . . . . . . . Propulsion Burnouts . | . . . . . . . . . . . Robots Hopped . | . . . . . . . . . . . Potential Cave-ins . | . . . . . . . . . . . Cave-ins Triggered . | . . . . . . . . . . . Exploration Rate (%) 47 | 4 83 51 94 67 69 8 76 29 6 30 Regions Visited 10 Branch Regions 5 Pre-discovered Areas . | . . . . . . . . . . . Known Exits Taken 5 | . . . . 1 1 1 1 1 . . Unknown Exits Taken 4 | 1 1 1 1 . . . . . . . Scrap Searched 4 | . . 1 . . . . 3 . . . Spaces Dug 8 | . . . . . 6 2 . . . . Terrain Destroyed 77 | . . 30 . . 43 4 . . . . Melee 6 | . . . . . 4 2 . . . . Projectile 10 | . . . . . 10 . . . . . AOE 61 | . . 30 . . 29 2 . . . . Terrain Rammed . | . . . . . . . . . . . Walls Destroyed . | . . . . . . . . . . . Machines Disabled . | . . . . . . . . . . . Actions | -11 -10 -10 -10 -9 -8 -7 -7 -7 -6 -6 --------- Run | Yrd Mat Min Exi Min Mat Fac Low Low Fac Was Total 6980 | 54 794 320 813 337 1329 1013 1702 230 279 109 Wait 1762 | 1 155 27 17 43 198 431 795 11 27 57 Move 4622 | 35 558 279 680 286 896 505 867 218 246 52 Hop . | . . . . . . . . . . . Pick Up 106 | 12 18 5 6 2 44 11 6 . 2 . Fast Attach . | . . . . . . . . . . . Attach 56 | 6 8 . . . 29 8 3 . 2 . Detach . | . . . . . . . . . . . Swap 56 | . 6 1 1 . 29 14 2 1 2 . Drop 55 | . 1 4 6 2 29 7 6 . . . Fire 210 | . 48 4 . 4 97 34 23 . . . Melee 10 | . . . . . 7 3 . . . . Ram . | . . . . . . . . . . . Kick . | . . . . . . . . . . . Crush . | . . . . . . . . . . . Escape Stasis . | . . . . . . . . . . . Rewire 103 | . . . 103 . . . . . . . Trap . | . . . . . . . . . . . Miscellaneous . | . . . . . . . . . . . Route ------- -11/Scrapyard -10/Materials (discovered 4 exits: [*Mat x3] / *Min) -10/Mines (discovered 3 exits: [*Mat] / *Exi / [*Sub]) -10/Exiles (discovered 2 exits: [*Min x2]) -9/Mines -8/Materials (discovered 3 exits: *Fac x3) -7/Factory -7/Lower Caves -7/Lower Caves -6/Factory -6/Waste History --------- Turn | Location | Event 29 | -11/Scrapyard | Discovered new exit (range 15) 52 | -11/Scrapyard | Entered Materials 64 | -10/Materials | Central database locked down 71 | -10/Materials | Discovered new exit (range 15) 258 | -10/Materials | Discovered new exit (range 16) 306 | -10/Materials | Build established: Mutant 436 | -10/Materials | Discovered new exit (range 5) 511 | -10/Materials | Core integrity fell below 50% 552 | -10/Materials | Derelicts attacked the area 942 | -10/Materials | Core integrity fell below 20% 989 | -10/Materials | Repaired Sml. Laser 1017 | -10/Materials | Repaired Lgt. Treads 1045 | -10/Materials | Repaired Structural Scanner 1072 | -10/Materials | Repaired Ion Engine 1100 | -10/Materials | Repaired Sml. Laser 1141 | -10/Materials | Discovered new exit (range 15) 1208 | -10/Materials | Entered Mines 1285 | -10/Mines | Deemed a non-threat by the Exiles lab entrance 1287 | -10/Mines | Discovered new exit (range 5) 1337 | -10/Mines | Learned Materials stockpile data 1396 | -10/Mines | Learned 2 Materials zone layouts 1398 | -10/Mines | Discovered new exit (range 5) 1412 | -10/Mines | Met a Derelict who couldn't figure out how to use a Trap Extractor 1470 | -10/Mines | Discovered new exit (range 6) 1484 | -10/Mines | Assisted by bots powering up and referring to "LRC-V3" 1559 | -10/Mines | Entered Exiles 1559 | -10/Exiles | Found Exiles lab destroyed 1559 | -10/Exiles | Accompanied by 3 allies 1574 | -10/Exiles | Discovered new exit (range 16) 1894 | -10/Exiles | Build established: Commander-Mutant 2215 | -10/Exiles | Discovered new exit (range 10) 2438 | -10/Exiles | Entered Mines 2438 | -9/Mines | Accompanied by 9 allies 2483 | -9/Mines | Identified exit to Materials 2677 | -9/Mines | Lost 5 allies 2807 | -9/Mines | Entered Materials 2807 | -8/Materials | Accompanied by 4 allies 2807 | -8/Materials | Evolved 4 slots: Propulsion x1, Utility x3 3145 | -8/Materials | Discovered new exit (range 18) 3425 | -8/Materials | Lost 3 allies 3543 | -8/Materials | Build established: Mutant 3600 | -8/Materials | Identified exit to Factory 3778 | -8/Materials | Repaired Mak. Terrain Scanner 3963 | -8/Materials | Build established: Scavenger-Mutant 4108 | -8/Materials | Lost 5 parts (1n2u2w) 4115 | -8/Materials | Core integrity fell below 50% 4744 | -8/Materials | Entered Factory 4744 | -7/Factory | Evolved 2 slots: Propulsion x1, Utility x1 5258 | -7/Factory | Build established: Scavenger-Skirmisher 5921 | -7/Factory | Cargo convoy interrupted 6171 | -7/Factory | Discovered new exit (range 19) 6191 | -7/Factory | Identified exit to Lower Caves 6192 | -7/Factory | Entered Lower Caves 7980 | -7/Lower Caves | Discovered new exit (range 19) 7986 | -7/Lower Caves | Attracted the attention of an 0b10 checkpoint 8026 | -7/Lower Caves | Spotted B-75 Beast 8033 | -7/Lower Caves | Identified exit to Lower Caves 8034 | -7/Lower Caves | Entered another Lower Caves area 8109 | -7/Lower Caves | Discovered new exit (range 13) 8121 | -7/Lower Caves | Identified exit to Factory 8291 | -7/Lower Caves | Entered Factory 8291 | -6/Factory | Evolved 2 slots: Propulsion x1, Utility x1 8601 | -6/Factory | Sucked down chute 8601 | -6/Factory | Entered Waste 8674 | -6/Waste | Spotted C-40 Crusher 8705 | -6/Waste | Spotted C-40 Crusher 8710 | -6/Waste | Crushed by Compactor (1 part destroyed, 1 dropped) 8716 | -6/Waste | Spotted C-40 Crusher 8718 | -6/Waste | Spotted C-40 Crusher 8719 | -6/Waste | Self-destructed Last Messages --------------- 08232_ System corrupted: Component data lost. 08250_ Acquired 4 matter. 08252_ Acquired 22 matter. 08272_ System corrupted: Substantial component data lost. PARAMETERS=PROPULSION+1,UTILITY+1 LOCATION=FACTORY GOAL=ESCAPE 08295_ Connecting with DSF Access... 08316_ Acquired Adv. Terrain Scan Processor. 08549_ Acquired Cloaking Device. 08601_ Triggered Chute Trap. 08601_ A hatch slides open and sucks a vortex of air into the floor. LOCATION=UNKNOWN GOAL=ESCAPE 08710_ Carbon-fiber Leg crushed. 08710_ Lgt. Nuclear Core crushed. 08710_ Mak. Terrain Scanner destroyed. 08715_ Lgt. Nuclear Core crushed. Map ----- +----------------------------------------------------+ | ?????????????????????????????????????????????????? | | ?????????????????????????????????????????????????? | | ?????????????????????????????????????????????????? | | ?????????????????????????????????????????????????? | | ?????????????????????????????????????????????????? | | ?????????????????????????????????????????????????? | | ?????????????????????????????????????????????????? | | ?????????????????????????????????????????????????? | | ??????????????????????#########??????????????????? | | ?????????????????????? #??????????????????? | | ?????????????????????# #??????????????????? | | ?????????????????????? ???????????????????? | | ?????????????????????? ???????????????????? | | ?????????????????????? ???????????????????? | | ?????????????????###?#? ????????????????????? | | ??????????????######?? ???????????????????? | | ?????????????#########? #??????????????????? | | ???????????#####?####### #?#?##???????????????? | | ??????????##?########### ####?##??????????????? | | ?????????##?##?#?####### #??#####??? #????????? | | ????????##########?##### ########?? #????????? | | ?????????##?############ ######## ####?????? | | ????????###########?## ?????? | | ?????????###########?# ????? | | ??????#?######?####### C????? | | ??????#??###?######### @CC C????? | | ?????##?################ CC######## ?????????? | | ???????################# ######## ?#????????? | | ?????##?################ #?###### #????????? | | ??????#############?#### CC######## ?????????? | | ?????################### CC##???##? #????????? | | ????######?######?#### ######## #????????? | | ??????####?###?###?### ######## ? #????????? | | ????################## ######?# #????????? | | ?????####?############ [##?##### ??????????? | | ?????#??######?######### ######## ???#???????? | | ?#????#?################ #?#?#### ? #????????? | | ??????#### #### #??##### #????????? | | ?#?#??#### #### ########? #????????? | | ??????#### * #### ######## ??????????? | | ???????### #####?## ??????????? | | ??????#### * ######?# ???#???????? | | ?#?#???### ######## ? ?????????? | | ?????#??## ######## ??#???????? | | #???????## #### ########?? #????????? | | ??????#??# #### ######?#?????????????? | | ????#???## #### ######???????????????? | | ???#?????############### ####?#???????????????? | | ??#?#???#????#?#?##?#### ##?##??? ? ??????????? | | ????????#???#########?########?####??#???????????? | +----------------------------------------------------+ Best States ------------- Heat Dissipation 61 Energy Generation 18 Energy Capacity 310 Matter Stores 300 Matter Capacity 300 Sight Range 20 Robot Scan Range 15 Terrain Scan Range 18 Terrain Scan Density 210 Cloak Strength 2 Armor Coverage 150 Weapon Shielding 33 Weapon Cycling 15 Evasion (%) 55 Recoil Reduction 3 Salvage Targeting 4 Item Schematics ----------------- None Robot Schematics ------------------ None Fabricated ------------ Nothing Repaired ---------- Sml. Laser | 1% | -10/Materials Lgt. Treads | 36% | -10/Materials Structural Scanner | 10% | -10/Materials Ion Engine | 56% | -10/Materials Sml. Laser | 45% | -10/Materials Mak. Terrain Scanner | 64% | -8/Materials Alien Tech Used ----------------- None Achievements -------------- None Challenges ------------ None Game ------ Seed CoreGreatRailgun Manual? 0 Play Time 01:08:42 Cumulative 139.7 hours Start 2025.05.11 @ 20:15:04 End 2025.05.12 @ 19:27:39 Sessions 3 Manual Loads 0 Difficulty Rogue Special Mode None Game No. 133 Rogue 133 Adventurer 0 Explorer 0 Win Type - Total 1 Types 1/0/0/0/0/0/0/0/0/0 Lore% 37 Gallery% 43 Achievement% 37 Wizard Run 0 Options --------- Layout 1 ASCII 0 Keyboard 0 Movement Numpad Keybinds 0 Fullscreen 1 Font 24/Smallcaps Map View 50x35 Zoom Use 0% Tactical HUD 1 Map Filters NONE Filters NONE Steam 1 RUN: 4cf2f8ac-1da4-4c2c-97cf-5fb1df0be891